bitfinex/quotes_BTCUSD_20240827
["timestamp","ask_amount","ask_price","bid_price","bid_amount"]
[1724787292266,2.03378078,62244.0,62243.0,0.0009042]
[1724787292481,2.05898283,62244.0,62243.0,0.0009042]
[1724787293127,2.06998283,62244.0,62243.0,0.0009042]
[1724787293338,2.08398283,62244.0,62243.0,0.0009042]
[1724787297957,2.10797548,62244.0,62243.0,0.0009042]
[1724787302356,1.78665948,62244.0,62243.0,0.0009042]
[1724787302759,0.84605364,62244.0,62243.0,0.0009042]
[1724787302967,0.5741947,62244.0,62243.0,0.0009042]
[1724787303178,0.55020205,62244.0,62243.0,0.0009042]
[1724787305068,0.57320205,62244.0,62243.0,0.0009042]
[1724787306323,0.7356565,62244.0,62243.0,0.4351042]
[1724787306551,0.57320205,62244.0,62243.0,0.4351042]
[1724787307205,0.56220205,62244.0,62243.0,0.4351042]
[1724787307451,0.56720205,62244.0,62243.0,0.4351042]
[1724787307689,0.55320205,62244.0,62243.0,0.4351042]
[1724787309216,0.56020205,62244.0,62243.0,0.4351042]
[1724787311635,0.56020205,62244.0,62243.0,0.4251042]
[1724787316575,0.46020205,62244.0,62243.0,0.4260084]
[1724787317494,0.60462876,62244.0,62243.0,0.4260084]
[1724787318319,0.46020205,62244.0,62243.0,0.4260084]
[1724787319799,0.46020205,62244.0,62243.0,0.0009042]
[1724787320004,0.5224677,62244.0,62243.0,0.0009042]
[1724787320459,0.54581719,62244.0,62243.0,0.0009042]
[1724787321156,0.53881719,62244.0,62243.0,0.0009042]
[1724787321376,0.55281719,62244.0,62243.0,0.0009042]
[1724787321820,0.54781719,62244.0,62243.0,0.0009042]
[1724787322038,0.48555154,62244.0,62243.0,0.0009042]
[1724787322706,0.47320205,62244.0,62243.0,0.0009042]
[1724787325928,0.57320205,62244.0,62243.0,0.0009042]
[1724787328966,0.57320205,62244.0,62243.0,0.0767042]
[1724787333487,0.57320205,62244.0,62243.0,0.0009042]
[1724787333694,0.81024701,62244.0,62243.0,0.0009042]
[1724787333912,0.57320205,62244.0,62243.0,0.0009042]
[1724787334349,1.21870789,62244.0,62243.0,0.0009042]
[1724787334569,1.54002389,62244.0,62243.0,0.0009042]
[1724787335022,1.86133989,62244.0,62243.0,0.0009042]
[1724787335461,0.23959484,62242.0,62241.0,0.009042]
[1724787335734,0.16439684,62241.0,62240.0,0.0009031]
[1724787335949,1.04395886,62241.0,62240.0,0.0009031]
[1724787336161,1.38828986,62241.0,62240.0,0.0009031]
[1724787336372,1.55788986,62241.0,62240.0,0.0009031]
[1724787338321,1.82298378,62239.0,62238.0,0.009042]
[1724787338527,1.62197978,62232.0,62231.0,0.0004]
[1724787338735,1.96635778,62232.0,62231.0,0.0004]
[1724787338984,2.70911378,62232.0,62231.0,0.0004]
[1724787339186,2.73432042,62232.0,62231.0,0.0004]
[1724787340231,2.73432042,62232.0,62222.0,0.091431]
[1724787340232,0.560712,62223.0,62222.0,0.009031]
[1724787340442,0.93630278,62223.0,62222.0,0.009031]
[1724787340660,0.77559078,62223.0,62222.0,0.009031]
[1724787340890,0.77559078,62223.0,62222.0,0.070531]
[1724787340891,0.77185894,62223.0,62222.0,0.070531]
[1724787341115,0.79706802,62223.0,62222.0,0.070531]
[1724787341539,0.82006802,62223.0,62222.0,0.070531]
[1724787342002,0.98078002,62223.0,62222.0,0.009031]
[1724787342227,0.82006802,62223.0,62222.0,0.009031]
[1724787342874,0.80706802,62223.0,62222.0,0.009031]
[1724787343356,0.82034582,62223.0,62222.0,0.009031]
[1724787343584,0.98277935,62223.0,62222.0,0.009031]
[1724787343793,1.00777935,62223.0,62222.0,0.009031]
[1724787344021,0.99377935,62223.0,62222.0,0.009031]
[1724787344241,0.98277935,62223.0,62222.0,0.009031]
[1724787344469,1.00977935,62223.0,62222.0,0.009031]
[1724787344703,0.83334582,62223.0,62222.0,0.009031]
[1724787344928,0.84734582,62223.0,62222.0,0.009031]
[1724787345148,0.83434582,62223.0,62222.0,0.009031]
[1724787345374,0.84834582,62223.0,62222.0,0.009031]
[1724787345564,1.01077935,62223.0,62222.0,0.009031]
[1724787346450,0.59948688,62223.0,62222.0,0.009031]
[1724787346661,0.57620908,62223.0,62222.0,0.145331]
[1724787347299,0.56220908,62223.0,62222.0,0.145331]
[1724787347501,0.57520908,62223.0,62222.0,0.145331]
[1724787347705,0.57520908,62223.0,62222.0,0.084331]
[1724787347706,0.88290547,62223.0,62222.0,0.084331]
[1724787348018,0.89690547,62223.0,62222.0,0.084331]
[1724787349104,0.96336802,62223.0,62222.0,0.009031]
[1724787349309,0.82779986,62223.0,62222.0,0.009031]
[1724787349734,0.82406802,62223.0,62222.0,0.009031]
[1724787350101,0.81106802,62223.0,62222.0,0.009031]
[1724787350468,0.82506802,62223.0,62222.0,0.009031]
[1724787350664,0.57620908,62223.0,62222.0,0.009031]
[1724787351015,0.54820908,62223.0,62222.0,0.091531]
[1724787351227,0.57620908,62223.0,62222.0,0.156431]
[1724787351657,0.56220908,62223.0,62222.0,0.156431]
[1724787352537,0.54820908,62223.0,62222.0,0.156431]
[1724787352988,0.56120908,62223.0,62222.0,0.156431]
[1724787353412,0.56220908,62223.0,62222.0,0.156431]
[1724787353619,0.54820908,62223.0,62222.0,0.156431]
[1724787353846,0.57420908,62223.0,62222.0,0.156431]
[1724787360708,0.74008565,62223.0,62222.0,0.009031]
[1724787361434,0.90079765,62223.0,62222.0,0.009031]
[1724787361635,0.73865292,62223.0,62222.0,0.009031]
[1724787361835,0.72465292,62223.0,62222.0,0.009031]
[1724787362155,1.06007692,62223.0,62222.0,0.009031]
[1724787362357,1.04807692,62223.0,62222.0,0.009031]
[1724787362612,1.06207692,62223.0,62222.0,0.009031]
[1724787363389,1.04807692,62223.0,62222.0,0.009031]
[1724787363592,1.03407692,62223.0,62222.0,0.009031]
[1724787363799,1.36950092,62223.0,62222.0,0.009031]
[1724787363977,1.44470092,62223.0,62222.0,0.009031]
[1724787364847,1.12327692,62223.0,62222.0,0.009031]
[1724787365057,1.06207692,62223.0,62222.0,0.009031]
[1724787365686,1.03407692,62223.0,62222.0,0.009031]
[1724787365930,1.06207692,62223.0,62222.0,0.009031]
[1724787368787,1.38350092,62223.0,62222.0,0.009031]
[1724787369620,1.51990092,62223.0,62222.0,0.009031]
[1724787371555,2.01092492,62223.0,62222.0,0.009031]
[1724787371761,1.51990092,62223.0,62222.0,0.009031]
[1724787372616,1.50590092,62223.0,62222.0,0.009031]
[1724787372822,1.49190092,62223.0,62222.0,0.009031]
[1724787373058,1.84132492,62223.0,62222.0,0.009031]
[1724787373289,1.51990092,62223.0,62222.0,0.009031]
[1724787374401,1.51990092,62223.0,62222.0,0.008031]
[1724787374635,1.75636199,62223.0,62222.0,0.008031]
[1724787374850,1.68116199,62223.0,62222.0,0.008031]
[1724787375073,1.61996199,62223.0,62222.0,0.008031]
[1724787375330,1.59196199,62223.0,62222.0,0.008031]
[1724787375545,1.60596199,62223.0,62222.0,0.008031]
[1724787375750,1.61996199,62223.0,62222.0,0.008031]
[1724787376614,1.38350092,62223.0,62222.0,0.008031]
[1724787378536,1.38350092,62223.0,62211.0,0.0004]
[1724787378537,0.72521284,62212.0,62211.0,0.0004]
[1724787378759,0.88595284,62212.0,62211.0,0.0004]
[1724787378991,0.98595284,62212.0,62211.0,0.0004]
[1724787379222,1.10936661,62212.0,62211.0,0.0004]
[1724787379447,1.35564761,62212.0,62211.0,0.0004]
[1724787379674,1.36964761,62212.0,62211.0,0.0004]
[1724787379904,0.00373184,62207.0,62206.0,0.0734]
[1724787380118,0.4373438,62207.0,62206.0,0.0734]
[1724787380365,0.5373438,62207.0,62206.0,0.0734]
[1724787381223,0.8588508,62207.0,62206.0,0.0734]
[1724787381664,0.8728508,62207.0,62206.0,0.0734]
[1724787381882,0.5513438,62207.0,62206.0,0.0734]
[1724787382318,0.5885902,62207.0,62206.0,0.0734]
[1724787385157,0.5745902,62207.0,62206.0,0.0734]
[1724787385571,0.5745902,62207.0,62206.0,0.0484]
[1724787385775,0.5885902,62207.0,62206.0,0.0484]
[1724787385997,0.5745902,62207.0,62206.0,0.0484]
[1724787386234,0.5745902,62207.0,62206.0,0.0234]
[1724787386438,0.5885902,62207.0,62206.0,0.0234]
[1724787386715,0.5745902,62207.0,62206.0,0.0234]
[1724787386928,0.00373184,62206.0,62205.0,0.069731]
[1724787387141,0.12773186,62206.0,62205.0,0.069731]
[1724787387348,0.29007369,62206.0,62205.0,0.069731]
[1724787387993,0.30407369,62206.0,62205.0,0.069731]
[1724787388681,0.47882969,62206.0,62205.0,0.069731]
[1724787388900,0.31648786,62206.0,62205.0,0.069731]
[1724787389347,0.47879639,62206.0,62205.0,0.069731]
[1724787390008,0.47879639,62206.0,62205.0,0.146031]
[1724787390415,0.46479639,62206.0,62205.0,0.146031]
[1724787390623,0.45079639,62206.0,62205.0,0.146031]
[1724787391039,0.46479639,62206.0,62205.0,0.146031]
[1724787391950,0.47879639,62206.0,62205.0,0.146031]
[1724787395060,0.80030839,62206.0,62205.0,0.069731]
[1724787395265,0.47879639,62206.0,62205.0,0.069731]
[1724787395447,0.31648786,62206.0,62205.0,0.069731]
[1724787395904,0.15573186,62206.0,62205.0,0.069731]
[1724787396115,0.25545377,62206.0,62205.0,0.069731]
[1724787397002,0.15573186,62206.0,62205.0,0.069731]
[1724787397220,0.25545377,62206.0,62205.0,0.069731]
[1724787400505,0.25627577,62206.0,62205.0,0.069731]
[1724787401385,0.41703177,62206.0,62205.0,0.069731]
[1724787401631,0.25627577,62206.0,62205.0,0.069731]
[1724787406451,0.25627577,62206.0,62205.0,0.144831]
[1724787406452,0.151822,62206.0,62205.0,0.144831]
[1724787406664,0.25154391,62206.0,62205.0,0.144831]
[1724787407334,0.23754391,62206.0,62205.0,0.144831]
[1724787407542,0.24654391,62206.0,62205.0,0.144831]
[1724787408178,0.23254391,62206.0,62205.0,0.144831]
[1724787408612,0.24454391,62206.0,62205.0,0.144831]
[1724787408830,0.021822,62206.0,62205.0,0.144831]
[1724787409087,0.021822,62206.0,62205.0,0.32134426]
[1724787409295,0.021822,62206.0,62205.0,0.64286126]
[1724787409976,0.012822,62206.0,62205.0,0.30685716]
[1724787410200,0.021822,62206.0,62205.0,0.14609916]
[1724787410439,0.044822,62206.0,62205.0,0.14609916]
[1724787410653,0.035822,62206.0,62205.0,0.14609916]
[1724787411132,0.036822,62206.0,62205.0,0.14809916]
[1724787411359,0.02462852,62206.0,62205.0,0.14809916]
[1724787411589,0.02462852,62206.0,62205.0,0.14909916]
[1724787411810,0.47435043,62206.0,62205.0,0.146831]
[1724787412269,0.47435043,62206.0,62205.0,0.147831]
[1724787412494,0.47435043,62206.0,62205.0,0.146831]
[1724787412699,0.47535043,62206.0,62205.0,0.144831]
[1724787413134,0.47335043,62206.0,62205.0,0.146831]
[1724787413564,0.47335043,62206.0,62205.0,0.144831]
[1724787413783,0.47535043,62206.0,62205.0,0.144831]
[1724787414207,0.37562852,62206.0,62205.0,0.144831]
[1724787414646,0.37962852,62206.0,62205.0,0.144831]
[1724787420896,0.37962852,62206.0,62205.0,0.1593181]
[1724787421108,0.37962852,62206.0,62205.0,0.1493181]
[1724787421497,0.52402517,62206.0,62205.0,0.1493181]
[1724787421933,0.52402517,62206.0,62205.0,0.134831]
[1724787422966,0.37962852,62206.0,62205.0,0.134831]
[1724787424129,0.37962852,62206.0,62205.0,0.1357352]
[1724787425612,0.37962852,62206.0,62205.0,0.13700336]
[1724787426456,0.37362852,62206.0,62205.0,0.13700336]
[1724787426667,0.37362852,62206.0,62205.0,0.13800336]
[1724787426816,0.37362852,62206.0,62205.0,0.29876136]
[1724787427397,0.37362852,62206.0,62205.0,0.29776136]
[1724787427819,0.37362852,62206.0,62205.0,0.61927836]
[1724787428047,0.00262852,62206.0,62205.0,0.61927836]
[1724787428258,0.09689128,62206.0,62205.0,0.62027836]
[1724787428673,0.09789128,62206.0,62205.0,0.62027836]
[1724787428894,0.09689128,62206.0,62205.0,0.62027836]
[1724787429537,0.09689128,62206.0,62205.0,0.61927836]
[1724787429750,0.00062852,62206.0,62205.0,0.61927836]
[1724787429991,0.00162852,62206.0,62205.0,0.62127836]
[1724787431246,0.09789128,62206.0,62205.0,0.62127836]
[1724787431478,0.00162852,62206.0,62205.0,0.62127836]
[1724787433207,0.07380267,62206.0,62205.0,0.62127836]
[1724787433413,0.07380267,62206.0,62205.0,1.0692338]
[1724787435103,0.07380267,62206.0,62205.0,0.94279536]
[1724787436663,0.00162852,62206.0,62205.0,0.94279536]
[1724787438030,0.00162852,62206.0,62205.0,1.26431236]
[1724787438500,0.07332758,62212.0,62205.0,1.26431236]
[1724787438501,0.02521377,62212.0,62211.0,1.36611032]
[1724787438941,0.02521377,62212.0,62211.0,1.84756177]
[1724787439174,0.02521377,62212.0,62211.0,1.94756177]
[1724787439386,0.000822,62223.0,62222.0,1.12626916]
[1724787439655,0.000822,62223.0,62222.0,1.58369816]
[1724787439857,0.000822,62223.0,62222.0,1.74266361]
[1724787440066,0.000822,62223.0,62222.0,1.99149431]
[1724787440305,0.000822,62223.0,62222.0,1.99649431]
[1724787440523,0.000822,62229.0,62228.0,1.51409186]
[1724787440959,0.000822,62229.0,62228.0,1.83448986]
[1724787441168,0.000822,62229.0,62228.0,1.99445531]
[1724787441626,0.000822,62229.0,62228.0,1.99345531]
[1724787442478,0.000822,62229.0,62228.0,1.99245531]
[1724787443158,0.001822,62229.0,62228.0,2.00545531]
[1724787443591,0.000822,62229.0,62228.0,1.99245531]
[1724787443807,0.001822,62229.0,62228.0,1.99645531]
[1724787444011,0.002822,62229.0,62228.0,2.00945531]
[1724787445085,0.001822,62229.0,62228.0,2.00545531]
[1724787445319,0.000822,62229.0,62228.0,1.99245531]
[1724787445539,0.001822,62229.0,62228.0,1.99745531]
[1724787445741,0.001822,62229.0,62228.0,1.67605731]
[1724787446159,0.002822,62229.0,62228.0,1.68705731]
[1724787446789,0.001822,62229.0,62228.0,1.67605731]
[1724787447205,0.002822,62229.0,62228.0,1.68705731]
[1724787448459,0.001822,62229.0,62228.0,1.67605731]
[1724787448676,0.02702003,62229.0,62228.0,0.95186316]
[1724787448880,0.02702003,62229.0,62228.0,0.30906716]
[1724787449089,0.02702003,62229.0,62228.0,0.1461]
[1724787449303,0.02702003,62229.0,62228.0,0.306799]
[1724787449516,0.02802003,62229.0,62228.0,0.317799]
[1724787449935,0.02702003,62229.0,62228.0,0.306799]
[1724787450352,0.02702003,62229.0,62228.0,0.634197]
[1724787450562,0.02802003,62229.0,62228.0,0.638197]
[1724787450766,0.02802003,62229.0,62228.0,0.634197]
[1724787451107,0.02902003,62229.0,62228.0,0.638197]
[1724787451715,0.02902003,62229.0,62228.0,1.055556]
[1724787455494,0.02902003,62229.0,62228.0,0.734158]
[1724787455915,0.02902003,62229.0,62228.0,1.055556]
[1724787457256,0.02902003,62229.0,62228.0,0.959595]
[1724787459426,0.02902003,62229.0,62228.0,0.9604992]
[1724787464234,0.02902003,62229.0,62228.0,0.6391012]
[1724787464452,0.07902003,62229.0,62228.0,0.0159042]
[1724787464657,0.15502003,62229.0,62228.0,0.0159042]
[1724787464861,0.07902003,62229.0,62228.0,0.03224462]
[1724787465078,0.07902003,62229.0,62228.0,0.1766032]
[1724787465292,0.07802003,62229.0,62228.0,0.4870012]
[1724787465496,0.07802003,62229.0,62228.0,0.1656032]
[1724787465698,0.07902003,62229.0,62228.0,0.4970012]
[1724787465902,0.07902003,62229.0,62228.0,0.27219392]
[1724787466325,0.07702003,62229.0,62228.0,0.26819392]
[1724787466538,0.07802003,62229.0,62228.0,0.27219392]
[1724787466983,0.07702003,62229.0,62228.0,0.58959192]
[1724787467189,0.07702003,62229.0,62228.0,0.59259192]
[1724787467399,0.07602003,62229.0,62228.0,0.58259192]
[1724787467607,0.07602003,62229.0,62228.0,0.58759192]
[1724787469746,0.07602003,62229.0,62228.0,0.4910012]
[1724787471075,0.07602003,62229.0,62228.0,0.8123992]
[1724787473728,0.07602003,62229.0,62228.0,0.8929992]
[1724787473934,0.07602003,62229.0,62228.0,0.9563992]
[1724787475508,0.09283703,62229.0,62228.0,0.9563992]
[1724787475713,0.09283703,62229.0,62228.0,1.08417972]
[1724787475888,0.09283703,62229.0,62228.0,0.9563992]
[1724787479146,0.09283703,62229.0,62228.0,0.8757992]
[1724787479547,0.14090407,62229.0,62228.0,0.8757992]
[1724787480139,0.14090407,62229.0,62228.0,0.0089042]
[1724787480337,0.16493759,62229.0,62228.0,0.0089042]
[1724787480644,0.09283703,62229.0,62228.0,0.0089042]
[1724787481633,0.09283703,62229.0,62228.0,0.0039042]
[1724787482109,0.09283703,62229.0,62228.0,0.0009042]
[1724787482566,0.09283703,62229.0,62228.0,0.0029042]
[1724787483028,0.09283703,62229.0,62228.0,0.0049042]
[1724787483366,0.09283703,62229.0,62228.0,0.0019042]
[1724787483794,0.09283703,62229.0,62228.0,0.02116532]
[1724787485469,0.09283703,62229.0,62228.0,0.08126532]
[1724787485883,0.09283703,62229.0,62228.0,0.24196432]
[1724787486099,0.09283703,62229.0,62228.0,0.08126532]
[1724787486308,0.09283703,62229.0,62228.0,0.0049042]
[1724787486526,0.09283703,62229.0,62228.0,0.16881699]
[1724787486692,0.09283703,62229.0,62228.0,0.5691012]
[1724787487076,0.09283703,62229.0,62228.0,0.8904992]
[1724787487304,0.09283703,62229.0,62228.0,1.02876494]
[1724787487722,0.09283703,62229.0,62228.0,1.09416494]
[1724787487864,0.04283703,62229.0,62228.0,1.41556294]
[1724787488281,0.04283703,62229.0,62228.0,0.8083992]
[1724787488491,0.04283703,62229.0,62228.0,0.0049042]
[1724787489420,0.18735144,62229.0,62228.0,0.0049042]
[1724787489823,0.26325144,62229.0,62228.0,0.0049042]
[1724787490035,0.32775144,62229.0,62228.0,0.0049042]
[1724787490668,0.18323703,62229.0,62228.0,0.0049042]
[1724787492468,0.04283703,62229.0,62228.0,0.0019042]
[1724787492911,0.04483703,62229.0,62228.0,0.0019042]
[1724787496784,0.21053703,62229.0,62228.0,0.0019042]
[1724787496990,0.21153705,62229.0,62228.0,0.0019042]
[1724787498467,0.21153705,62229.0,62228.0,0.0009042]
[1724787498702,0.21253705,62229.0,62228.0,0.0009042]
[1724787498890,0.21753705,62229.0,62228.0,0.0009042]
[1724787499091,0.21453705,62229.0,62228.0,0.0009042]
[1724787499349,0.20853703,62229.0,62228.0,0.0009042]
[1724787499566,0.07783703,62229.0,62228.0,0.0009042]
[1724787499778,0.24035418,62229.0,62228.0,0.0009042]
[1724787499990,0.07283703,62229.0,62228.0,0.0009042]
[1724787500398,0.07883703,62229.0,62228.0,0.0019042]
[1724787501066,0.05583703,62229.0,62228.0,0.0019042]
[1724787501315,0.06383703,62229.0,62228.0,0.0629042]
[1724787501545,0.04283703,62229.0,62228.0,0.0619042]
[1724787501778,0.04983703,62229.0,62228.0,0.0619042]
[1724787502004,0.04283703,62229.0,62228.0,0.0619042]
[1724787502420,0.04983703,62229.0,62228.0,0.0619042]
[1724787502635,0.04683703,62229.0,62228.0,0.0619042]
[1724787502809,0.04683703,62229.0,62228.0,0.0009042]
[1724787503049,0.21053703,62229.0,62228.0,0.0009042]
[1724787504346,0.20853703,62229.0,62228.0,0.0009042]
[1724787504772,0.21153703,62229.0,62228.0,0.0009042]
[1724787505198,0.21253703,62229.0,62228.0,0.0009042]
[1724787506054,0.21153703,62229.0,62228.0,0.0009042]
[1724787506269,0.21453703,62229.0,62228.0,0.0009042]
[1724787506511,0.14873703,62229.0,62228.0,0.0009042]
[1724787506729,0.23437243,62229.0,62228.0,0.0009042]
[1724787507162,0.23137243,62229.0,62228.0,0.0009042]
[1724787507417,0.06883703,62229.0,62228.0,0.0009042]
[1724787507655,0.07483703,62229.0,62228.0,0.0009042]
[1724787509582,0.23737243,62229.0,62228.0,0.0009042]
[1724787509793,0.07483703,62229.0,62228.0,0.0009042]
[1724787510218,0.23737243,62229.0,62228.0,0.0009042]
[1724787511737,0.07483703,62229.0,62228.0,0.0009042]
[1724787512800,0.05183703,62229.0,62228.0,0.0009042]
[1724787516242,0.13793703,62229.0,62228.0,0.0009042]
[1724787516415,0.3824169,62229.0,62228.0,0.0009042]
[1724787516628,0.21983705,62229.0,62228.0,0.0009042]
[1724787517259,0.3824169,62229.0,62228.0,0.0009042]
[1724787517459,0.38243128,62229.0,62228.0,0.0009042]
[1724787517893,0.21983705,62229.0,62228.0,0.0009042]
[1724787532868,0.31983705,62229.0,62228.0,0.0009042]
[1724787533043,0.31883703,62229.0,62228.0,0.0009042]
[1724787533257,0.80092603,62229.0,62228.0,0.0009042]
[1724787535085,0.47953303,62229.0,62228.0,0.0009042]
[1724787536365,0.31883703,62229.0,62228.0,0.0009042]
[1724787536781,0.47953303,62229.0,62228.0,0.0009042]
[1724787538886,0.25573703,62229.0,62228.0,0.0009042]
[1724787539162,0.17583705,62229.0,62228.0,0.0009042]
[1724787540239,0.41304692,62229.0,62228.0,0.0009042]
[1724787540487,0.50183703,62229.0,62228.0,0.0781042]
[1724787541794,0.52483703,62229.0,62228.0,0.1415042]
[1724787542904,0.52483703,62229.0,62228.0,0.0643042]
[1724787543125,0.66483703,62229.0,62228.0,0.0009042]
[1724787543350,0.94243326,62229.0,62228.0,0.0009042]
[1724787543575,1.17964313,62229.0,62228.0,0.0009042]
[1724787543777,1.34033913,62229.0,62228.0,0.0009042]
[1724787543999,1.42452226,62229.0,62228.0,0.0009042]
[1724787544243,1.10012926,62229.0,62228.0,0.0009042]
[1724787544456,1.11112926,62229.0,62228.0,0.0009042]
[1724787545082,0.97370843,62229.0,62228.0,0.0009042]
[1724787545293,0.96770843,62229.0,62228.0,0.0009042]
[1724787545467,0.90510843,62229.0,62228.0,0.0009042]
[1724787545678,0.91810843,62229.0,62228.0,0.0009042]
[1724787548302,0.6405122,62229.0,62228.0,0.0009042]
[1724787548526,0.53983703,62229.0,62228.0,0.0009042]
[1724787550866,0.41683703,62229.0,62228.0,0.1368042]
[1724787551607,0.40583703,62229.0,62228.0,0.1368042]
[1724787552028,0.39283703,62229.0,62228.0,0.1368042]
[1724787552272,0.42183703,62229.0,62228.0,0.1368042]
[1724787552823,0.43283703,62229.0,62228.0,0.1368042]
[1724787553475,0.42183703,62229.0,62228.0,0.1368042]
[1724787553942,0.42483703,62229.0,62228.0,0.1368042]
[1724787555423,0.42483703,62229.0,62228.0,0.32725452]
[1724787555424,0.05183703,62229.0,62228.0,0.32725452]
[1724787555664,0.05183703,62229.0,62228.0,0.64865252]
[1724787556563,0.04283703,62229.0,62228.0,0.6189012]
[1724787557188,0.04283703,62229.0,62228.0,0.6209012]
[1724787557189,0.04383703,62229.0,62228.0,0.6209012]
[1724787558276,0.04383703,62229.0,62228.0,0.6229012]
[1724787559134,0.04383703,62229.0,62228.0,0.9442992]
[1724787560229,0.04383703,62229.0,62228.0,0.6229012]
[1724787565324,0.04383703,62229.0,62228.0,0.3015032]
[1724787566507,0.04383703,62229.0,62228.0,0.33206921]
[1724787570867,0.04383703,62229.0,62228.0,0.3015032]
[1724787574737,0.04383703,62229.0,62228.0,0.1408042]
[1724787575636,0.04383703,62229.0,62228.0,0.1388042]
[1724787575842,0.04283703,62229.0,62228.0,0.1368042]
[1724787576050,0.04283703,62229.0,62228.0,0.1408042]
[1724787576262,0.04283703,62229.0,62228.0,0.1388042]
[1724787576602,0.04283703,62229.0,62228.0,0.1368042]
[1724787576816,0.04283703,62229.0,62228.0,0.1388042]
[1724787577052,0.04283703,62229.0,62228.0,0.18482632]
[1724787577597,0.04283703,62229.0,62228.0,0.1388042]
[1724787578166,0.04283703,62229.0,62228.0,0.1368042]
[1724787578399,0.04283703,62229.0,62228.0,0.1388042]
[1724787580630,0.18731949,62229.0,62228.0,0.1388042]
[1724787582193,0.18730328,62229.0,62228.0,0.1388042]
[1724787584618,0.04283703,62229.0,62228.0,0.1388042]
[1724787589092,0.15381321,62229.0,62228.0,0.0029042]
[1724787589324,0.48420923,62229.0,62228.0,0.0029042]
[1724787589556,0.80560223,62229.0,62228.0,0.0029042]
[1724787590470,0.81460223,62229.0,62228.0,0.0029042]
[1724787590696,0.49320923,62229.0,62228.0,0.0029042]
[1724787590917,0.22153705,62229.0,62228.0,0.0029042]
[1724787591143,0.22153705,62229.0,62228.0,0.0009042]
[1724787591144,0.33251323,62229.0,62228.0,0.0009042]
[1724787591361,0.33751321,62229.0,62228.0,0.0009042]
[1724787593867,0.57452815,62229.0,62228.0,0.0009042]
[1724787594325,0.33751321,62229.0,62228.0,0.0009042]
[1724787601667,0.49820921,62229.0,62228.0,0.0009042]
[1724787601867,0.33751321,62229.0,62228.0,0.0009042]
[1724787603584,0.49820921,62229.0,62228.0,0.0009042]
[1724787605539,1.14099521,62229.0,62228.0,0.0009042]
[1724787605731,1.24099521,62229.0,62228.0,0.0009042]
[1724787606385,1.47787168,62229.0,62228.0,0.0009042]
[1724787606822,1.46287168,62229.0,62228.0,0.0009042]
[1724787607035,1.47387168,62229.0,62228.0,0.0009042]
[1724787607670,1.48687168,62229.0,62228.0,0.0009042]
[1724787608343,0.92860221,62229.0,62228.0,0.0009042]
[1724787608572,1.48685037,62229.0,62228.0,0.0009042]
[1724787609026,0.18983703,62229.0,62228.0,0.0009042]
[1724787609269,0.18983703,62229.0,62228.0,0.0835042]
[1724787609555,0.19083705,62229.0,62228.0,0.0009042]
[1724787610886,0.33193705,62229.0,62228.0,0.0009042]
[1724787613364,0.26653705,62229.0,62228.0,0.0009042]
[1724787613574,0.37751323,62229.0,62228.0,0.0009042]
[1724787614249,0.30181323,62229.0,62228.0,0.0009042]
[1724787615125,0.30181323,62229.0,62228.0,0.0618042]
[1724787615330,0.2597982,62229.0,62228.0,0.0618042]
[1724787616210,0.25983298,62229.0,62228.0,0.0618042]
[1724787620946,0.25983298,62229.0,62228.0,0.0009042]
[1724787621145,0.30185654,62229.0,62228.0,0.0009042]
[1724787624560,0.30185654,62229.0,62228.0,0.01485462]
[1724787625364,0.30185654,62229.0,62228.0,0.0009042]
[1724787626207,0.18984556,62229.0,62228.0,0.0009042]
[1724787626446,0.18984556,62229.0,62228.0,0.1444042]
[1724787627080,0.17884556,62229.0,62228.0,0.1444042]
[1724787627255,0.18984556,62229.0,62228.0,0.1444042]
[1724787627914,0.17684556,62229.0,62228.0,0.1444042]
[1724787628124,0.18984556,62229.0,62228.0,0.1444042]
[1724787628344,0.17684556,62229.0,62228.0,0.1444042]
[1724787628765,0.17384556,62229.0,62228.0,0.1444042]
[1724787629205,0.17984556,62229.0,62228.0,0.1444042]
[1724787632010,0.05684556,62229.0,62228.0,0.15884462]
[1724787632270,0.2194346,62229.0,62228.0,0.15884462]
[1724787632936,0.05684556,62229.0,62228.0,0.43055458]
[1724787633370,0.05684556,62229.0,62228.0,0.75195258]
[1724787633810,0.05684556,62229.0,62228.0,1.39474858]
[1724787634026,0.15320902,62229.0,62228.0,1.39474858]
[1724787634235,0.05684556,62229.0,62228.0,1.39474858]
[1724787634842,0.12045432,62237.0,62228.0,1.39474858]
[1724787634843,0.04816884,62238.0,62231.0,0.0601]
[1724787635094,0.12045432,62243.0,62238.0,0.62292]
[1724787635095,0.06498919,62239.0,62238.0,0.62292]
[1724787635318,0.016817,62239.0,62238.0,1.37662496]
[1724787635983,0.016817,62239.0,62238.0,1.37462496]
[1724787636204,0.016817,62239.0,62238.0,1.42357945]
[1724787636410,0.017817,62239.0,62238.0,1.42657945]
[1724787636844,0.018817,62239.0,62238.0,1.42957945]
[1724787637685,0.018817,62239.0,62238.0,0.62692]
[1724787637941,0.018817,62239.0,62238.0,0.307573]
[1724787638153,0.018817,62239.0,62238.0,0.62892]
[1724787638363,0.017817,62239.0,62238.0,0.62592]
[1724787638601,0.016817,62239.0,62238.0,0.7176471]
[1724787638832,0.017817,62239.0,62238.0,0.7206471]
[1724787639276,0.017817,62239.0,62238.0,0.4063001]
[1724787639493,0.017817,62239.0,62238.0,0.4003001]
[1724787639719,0.018817,62239.0,62238.0,0.1559]
[1724787640189,0.09218954,62239.0,62238.0,0.1559]
[1724787640370,0.04401735,62239.0,62238.0,0.1559]
[1724787640603,0.09205399,62239.0,62238.0,0.1559]
[1724787642390,0.04401735,62239.0,62238.0,0.1559]
[1724787643915,0.04483935,62239.0,62238.0,0.1559]
[1724787644372,0.04483935,62239.0,62238.0,0.2196947]
[1724787648143,0.04483935,62239.0,62238.0,0.3803677]
[1724787648349,0.04483935,62239.0,62238.0,0.2196947]
[1724787650546,0.04483935,62239.0,62238.0,0.3803677]
[1724787652373,0.04483935,62239.0,62238.0,0.3753677]
[1724787654738,0.04483935,62239.0,62238.0,0.6967147]
[1724787657465,0.09283557,62239.0,62238.0,0.6967147]
[1724787657915,0.09283557,62239.0,62238.0,0.3753677]
[1724787658333,0.09283557,62239.0,62238.0,0.311573]
[1724787658552,0.09283557,62239.0,62238.0,0.63292]
[1724787658778,0.09283557,62239.0,62238.0,0.311573]
[1724787660100,0.04483935,62239.0,62238.0,0.63292]
[1724787660562,0.04483935,62239.0,62238.0,0.311573]
[1724787662571,0.04483935,62239.0,62238.0,0.1509]
[1724787662788,0.04483935,62239.0,62238.0,0.311573]
[1724787664397,0.09288537,62239.0,62238.0,0.311573]
[1724787664602,0.09288537,62239.0,62238.0,0.1509]
[1724787665799,0.09288537,62239.0,62238.0,0.4070035]
[1724787666222,0.09288537,62239.0,62238.0,0.4079077]